bitfinex-derivatives/quotes_BTCF0:USTF0_20251030
["timestamp","ask_amount","ask_price","bid_price","bid_amount"]
[1761840491441,0.89391771,108110.0,108100.0,0.06259914]
[1761840491643,0.89491771,108110.0,108100.0,0.06359914]
[1761840491950,0.89491771,108110.0,108100.0,0.04072914]
[1761840492252,0.89391771,108110.0,108100.0,0.03972914]
[1761840492445,0.57179771,108110.0,108100.0,0.04072914]
[1761840492640,1.2806185,108110.0,108100.0,0.04072914]
[1761840492945,1.03974079,108110.0,108100.0,0.08638914]
[1761840493148,1.2805385,108110.0,108100.0,0.08638914]
[1761840493447,0.72974079,108110.0,108100.0,0.08638914]
[1761840493647,0.94835771,108110.0,108100.0,0.02685914]
[1761840493945,1.8805385,108110.0,108100.0,0.02685914]
[1761840494144,1.2832985,108110.0,108100.0,0.02685914]
[1761840494347,1.2805385,108110.0,108100.0,0.002]
[1761840494545,1.03974079,108110.0,108100.0,0.002]
[1761840494743,1.2805385,108110.0,108100.0,0.01587]
[1761840494944,1.03974079,108110.0,108100.0,0.06388914]
[1761840495149,1.03978079,108110.0,108100.0,0.08720914]
[1761840495351,1.01484,108110.0,108100.0,0.08720914]
[1761840495654,1.25563771,108110.0,108100.0,0.06388914]
[1761840495836,1.25563771,108110.0,108100.0,0.08720914]
[1761840495837,0.6918,108110.0,108100.0,0.08720914]
[1761840496146,1.0148,108110.0,108100.0,0.08720914]
[1761840497552,1.0148,108110.0,108100.0,0.04072914]
[1761840497742,1.25559771,108110.0,108100.0,0.04072914]
[1761840498943,1.2805385,108110.0,108100.0,0.04072914]
[1761840500252,1.2805385,108110.0,108100.0,0.02685914]
[1761840500448,1.2832985,108110.0,108100.0,0.002]
[1761840500644,1.04250079,108110.0,108100.0,0.03862]
[1761840500953,1.03974079,108110.0,108100.0,0.08679914]
[1761840501252,0.6918,108110.0,108100.0,0.08679914]
[1761840501449,1.01472,108110.0,108100.0,0.08679914]
[1761840502252,1.25551771,108110.0,108100.0,0.02685914]
[1761840502755,1.03966079,108110.0,108100.0,0.08452914]
[1761840503052,1.25551771,108110.0,108100.0,0.05960217]
[1761840503453,1.2804585,108110.0,108100.0,0.05960217]
[1761840503861,1.25551771,108110.0,108100.0,0.05960217]
[1761840504357,1.25551771,108110.0,108100.0,0.01531217]
[1761840504544,0.6918,108110.0,108100.0,0.05960217]
[1761840504746,1.01456,108110.0,108100.0,0.05960217]
[1761840505553,0.68456,108110.0,108100.0,0.05960217]
[1761840505752,0.73456,108110.0,108100.0,0.05767]
[1761840505959,0.37376,108110.0,108100.0,0.05767]
[1761840506354,0.73456,108110.0,108100.0,0.05767]
[1761840506555,0.97535771,108110.0,108100.0,0.05767]
[1761840506962,1.20535771,108110.0,108100.0,0.05767]
[1761840507157,1.20535771,108110.0,108100.0,0.01338]
[1761840507557,0.96456,108110.0,108100.0,0.01338]
[1761840507860,1.2302985,108110.0,108080.0,0.10786021]
[1761840508061,0.3608,108090.0,108080.0,0.10786021]
[1761840508258,1.0238,108090.0,108080.0,0.10786021]
[1761840508459,0.7538,108090.0,108080.0,0.10786021]
[1761840508963,0.7538,108090.0,108080.0,0.10886021]
[1761840509556,0.75384,108090.0,108080.0,0.10786021]
[1761840509753,0.07,108090.0,108080.0,0.46966021]
[1761840509966,0.32308,108090.0,108080.0,0.10886021]
[1761840510266,0.32308,108090.0,108080.0,0.47066021]
[1761840510660,0.32308,108090.0,108080.0,0.10986021]
[1761840510966,0.73588,108090.0,108080.0,0.10986021]
[1761840511560,0.73388,108090.0,108080.0,0.10986021]
[1761840511770,0.73588,108090.0,108080.0,0.10986021]
[1761840512465,0.32528,108090.0,108080.0,0.47066021]
[1761840513171,0.68608,108090.0,108080.0,0.10986021]
[1761840514070,0.72608,108090.0,108080.0,0.10986021]
[1761840514472,0.042,108090.0,108080.0,0.10986021]
[1761840514678,0.3252,108090.0,108080.0,0.10986021]
[1761840514870,0.3252,108090.0,108080.0,0.70986021]
[1761840515273,0.3252,108090.0,108080.0,0.46966021]
[1761840515474,0.3252,108090.0,108080.0,0.47066021]
[1761840515673,0.3252,108090.0,108080.0,0.87455976]
[1761840515873,0.002,108090.0,108080.0,0.96709196]
[1761840516177,0.002,108090.0,108080.0,0.82485955]
[1761840516371,0.002,108090.0,108080.0,1.51915175]
[1761840516575,0.002,108090.0,108080.0,1.52015175]
[1761840516776,0.002,108090.0,108080.0,0.92015175]
[1761840517175,0.002,108090.0,108080.0,0.5162522]
[1761840517478,0.07585,108100.0,108090.0,0.04429]
[1761840517678,0.07585,108100.0,108090.0,0.86157858]
[1761840517976,0.07585,108100.0,108090.0,1.05767903]
[1761840518475,0.07585,108100.0,108090.0,1.05491903]
[1761840518867,0.07585,108100.0,108090.0,1.05867903]
[1761840519069,0.07585,108100.0,108090.0,1.05591903]
[1761840519269,0.07585,108100.0,108090.0,1.05867903]
[1761840519576,0.07585,108100.0,108090.0,1.20221903]
[1761840520076,0.07585,108100.0,108090.0,1.20497903]
[1761840520277,0.07585,108100.0,108090.0,0.60497903]
[1761840520577,0.07585,108100.0,108090.0,0.6476737]
[1761840520777,0.07785,108100.0,108090.0,1.05257325]
[1761840521171,0.07785,108100.0,108090.0,1.97577325]
[1761840521676,0.07785,108100.0,108090.0,1.5718737]
[1761840521874,0.07785,108100.0,108090.0,1.37577325]
[1761840522273,0.07785,108100.0,108090.0,0.55339]
[1761840522674,0.07785,108100.0,108090.0,0.6459137]
[1761840522874,0.07785,108100.0,108090.0,1.05257325]
[1761840523975,0.07785,108100.0,108090.0,0.95728955]
[1761840524173,0.07785,108100.0,108090.0,0.87639]
[1761840525277,0.07785,108100.0,108090.0,0.9689137]
[1761840525485,0.07785,108100.0,108090.0,1.37281325]
[1761840526085,0.07785,108100.0,108090.0,1.37557325]
[1761840527184,0.0027316,108100.0,108090.0,1.37557325]
[1761840527375,0.0027316,108100.0,108090.0,1.05257325]
[1761840527580,0.0027316,108100.0,108090.0,1.28296955]
[1761840527781,0.0027316,108100.0,108090.0,0.96004955]
[1761840527987,0.0027316,108100.0,108090.0,1.28016955]
[1761840528283,0.0027316,108100.0,108090.0,1.28292955]
[1761840528491,0.0027316,108100.0,108090.0,1.37545325]
[1761840529885,0.0027316,108100.0,108090.0,1.37269325]
[1761840530190,0.0027316,108100.0,108090.0,1.37545325]
[1761840530889,0.0027316,108100.0,108090.0,1.28012955]
[1761840531086,0.0484916,108100.0,108090.0,0.55339]
[1761840532280,0.0255916,108100.0,108090.0,0.55339]
[1761840532483,0.0027316,108100.0,108090.0,0.55339]
[1761840534181,0.0027316,108100.0,108090.0,0.95728955]
[1761840534792,0.0253416,108100.0,108090.0,0.95728955]
[1761840535192,0.0027316,108100.0,108090.0,0.95728955]
[1761840535396,0.0027316,108100.0,108090.0,1.00700521]
[1761840536096,0.0482416,108100.0,108090.0,1.00700521]
[1761840536386,0.0482416,108100.0,108090.0,0.09600566]
[1761840536387,0.4290416,108100.0,108090.0,0.09600566]
[1761840536595,0.4402216,108100.0,108090.0,0.09600566]
[1761840536785,0.7628216,108100.0,108090.0,0.09600566]
[1761840537093,0.7428216,108100.0,108090.0,0.09600566]
[1761840537291,0.3708416,108100.0,108090.0,0.09600566]
[1761840538088,0.7316416,108100.0,108090.0,0.09600566]
[1761840538481,0.7716416,108100.0,108090.0,0.09600566]
[1761840538681,0.73091,108100.0,108090.0,0.09600566]
[1761840539589,0.73091,108100.0,108090.0,0.07411566]
[1761840539794,0.73091,108100.0,108090.0,0.09701566]
[1761840539992,0.73091,108100.0,108090.0,0.05171566]
[1761840540192,1.06367,108100.0,108090.0,0.05171566]
[1761840540386,1.06091,108100.0,108090.0,0.05171566]
[1761840540694,1.06091,108100.0,108090.0,0.07374566]
[1761840540892,1.06091,108100.0,108090.0,0.05171566]
[1761840541194,1.46480955,108100.0,108090.0,0.05171566]
[1761840541393,1.06091,108100.0,108090.0,0.05171566]
[1761840541782,0.002,108100.0,108090.0,0.86134521]
[1761840541993,0.32452,108100.0,108090.0,0.86134521]
[1761840542194,0.32452,108100.0,108090.0,0.81162955]
[1761840542990,0.32252,108100.0,108090.0,0.90315325]
[1761840543195,0.002,108100.0,108090.0,0.90415325]
[1761840543388,0.32448,108100.0,108090.0,0.90415325]
[1761840543584,0.002,108100.0,108090.0,0.90415325]
[1761840543791,0.32444,108100.0,108090.0,0.90415325]
[1761840544198,0.32444,108100.0,108090.0,0.81162955]
[1761840544393,0.34705,108100.0,108090.0,0.40773]
[1761840544698,0.36995,108100.0,108090.0,0.45748255]
[1761840545504,0.36995,108100.0,108090.0,0.07378255]
[1761840545696,0.36995,108100.0,108090.0,0.05175255]
[1761840545998,0.36995,108100.0,108090.0,0.09668255]
[1761840546198,0.36995,108100.0,108090.0,0.45748255]
[1761840546496,0.36991,108100.0,108090.0,0.45748255]
[1761840546688,0.04751,108100.0,108090.0,0.81162955]
[1761840546889,0.002,108100.0,108090.0,0.90415325]
[1761840547095,0.3244,108100.0,108090.0,0.90415325]
[1761840547294,0.002,108100.0,108090.0,1.05045325]
[1761840547886,0.32456,108100.0,108090.0,1.2465537]
[1761840548092,0.002,108100.0,108090.0,1.05045325]
[1761840548400,0.002,108100.0,108090.0,0.55403]
[1761840548601,0.002,108100.0,108090.0,0.6465537]
[1761840549292,0.002,108100.0,108090.0,1.05045325]
[1761840549500,0.002,108100.0,108090.0,1.11675958]
[1761840549692,0.002,108100.0,108090.0,1.05045325]
[1761840550899,0.002,108100.0,108090.0,1.11951958]
[1761840551502,0.002,108100.0,108090.0,1.02423588]
[1761840552300,0.002,108100.0,108090.0,1.11675958]
[1761840552503,0.002,108100.0,108090.0,1.11951958]
[1761840553000,0.002,108100.0,108090.0,1.11675958]
[1761840553197,0.002,108100.0,108090.0,1.02423588]
[1761840553399,0.04751,108100.0,108090.0,0.40773]
[1761840553603,0.42831,108100.0,108090.0,0.002]
[1761840553798,1.02831,108100.0,108090.0,0.05180566]
[1761840554198,0.42831,108100.0,108090.0,0.05180566]
[1761840554903,0.42831,108100.0,108090.0,0.09707566]
[1761840555104,0.06751,108100.0,108090.0,0.09707566]
[1761840555299,0.04751,108100.0,108090.0,0.40807]
[1761840555696,0.37007,108100.0,108090.0,0.40807]
[1761840556200,0.04751,108100.0,108090.0,0.40807]
[1761840556606,0.37011,108100.0,108090.0,0.40807]
[1761840558398,0.04751,108100.0,108090.0,0.40807]
[1761840558602,0.02461,108100.0,108090.0,0.90449325]
[1761840558810,0.34665,108100.0,108090.0,0.81196955]
[1761840558999,0.02405,108100.0,108090.0,0.81196955]
[1761840559194,0.002,108100.0,108090.0,0.81196955]
[1761840559400,0.3246,108100.0,108090.0,1.26529325]
[1761840559899,0.002,108100.0,108090.0,1.17276955]
[1761840560103,0.32456,108100.0,108090.0,1.26529325]
[1761840560296,0.002,108100.0,108090.0,1.26529325]
[1761840560497,0.32456,108100.0,108090.0,1.26529325]
[1761840561202,0.36782,108100.0,108090.0,0.76887]
[1761840561399,0.36782,108100.0,108090.0,0.40807]
[1761840561910,0.36782,108100.0,108090.0,0.4578697]
[1761840562113,0.04526,108100.0,108090.0,0.4578697]
[1761840562291,0.36782,108100.0,108090.0,0.4578697]
[1761840564094,0.002,108100.0,108090.0,0.95429295]
[1761840564305,0.32464,108100.0,108090.0,0.90449325]
[1761840565308,0.32464,108100.0,108090.0,0.5005937]
[1761840565603,0.36911,108100.0,108090.0,0.55039334]
[1761840566004,0.3479,108100.0,108090.0,0.55039334]
[1761840566206,0.32464,108100.0,108090.0,0.55039334]
[1761840566707,0.36911,108100.0,108090.0,0.45786964]
[1761840569004,0.36911,108100.0,108090.0,0.55039334]
[1761840569199,0.002,108100.0,108090.0,0.55039334]
[1761840569400,0.3246,108100.0,108090.0,0.55039334]
[1761840570108,0.002,108100.0,108090.0,0.95429289]
[1761840570307,0.3246,108100.0,108090.0,0.95429289]
[1761840570697,0.002,108100.0,108090.0,0.55039334]
[1761840570903,0.36915,108100.0,108090.0,0.95429289]
[1761840571098,0.04647,108100.0,108090.0,0.95429289]
[1761840571410,0.36915,108100.0,108090.0,0.6987083]
[1761840571709,0.36915,108100.0,108090.0,0.45786964]
[1761840571710,0.04647,108100.0,108090.0,0.45786964]
[1761840572008,0.36915,108100.0,108090.0,0.45786964]
[1761840575814,0.36915,108100.0,108090.0,0.6987083]
[1761840576109,0.36915,108100.0,108090.0,0.45786964]
[1761840577006,0.34794,108100.0,108090.0,0.55039334]
[1761840577208,0.002,108100.0,108090.0,1.10223236]
[1761840577608,0.15576,108110.0,108100.0,0.1499852]
[1761840577906,0.15576,108110.0,108100.0,1.12392792]
[1761840578106,0.15576,108110.0,108100.0,0.80140792]
[1761840578710,0.15576,108110.0,108100.0,0.80240792]
[1761840578911,0.13783421,108110.0,108100.0,0.80240792]
[1761840579209,0.13783421,108110.0,108100.0,0.80340792]
[1761840579210,0.13983421,108110.0,108100.0,0.80340792]
[1761840579712,0.13983421,108110.0,108100.0,0.71089272]
[1761840581110,0.13983421,108110.0,108100.0,1.17975272]
[1761840582118,0.13983421,108110.0,108100.0,0.85719272]
[1761840582513,0.18430421,108110.0,108100.0,0.80740866]
[1761840583207,0.18430421,108110.0,108100.0,0.56657]
[1761840583617,0.18430421,108110.0,108100.0,0.80740866]
[1761840584010,0.50674421,108110.0,108100.0,0.56657]
[1761840587314,0.50674421,108110.0,108100.0,0.61632658]
[1761840587511,0.45456,108110.0,108100.0,0.61632658]
[1761840587821,1.05456,108110.0,108100.0,0.60258658]
[1761840588120,1.05456,108110.0,108100.0,0.61632658]
[1761840589214,0.45456,108110.0,108100.0,0.61632658]
[1761840589420,0.43335,108110.0,108100.0,0.85716524]
[1761840589816,0.08765,108110.0,108100.0,0.94968044]
[1761840590320,0.40989,108110.0,108100.0,0.94968044]
[1761840590722,0.40789,108110.0,108100.0,0.94968044]
[1761840590907,0.45236,108110.0,108100.0,0.85616524]
[1761840591112,0.45236,108110.0,108100.0,0.85716524]
[1761840591415,0.40789,108110.0,108100.0,0.94868044]
[1761840591619,0.40789,108110.0,108100.0,0.85716524]
[1761840592611,0.32224,108110.0,108100.0,0.85716524]
[1761840593008,0.36535,108110.0,108100.0,0.61632658]
[1761840594314,0.451,108110.0,108100.0,0.61632658]
[1761840598622,0.451,108110.0,108100.0,0.70884168]
[1761840598926,0.451,108110.0,108100.0,0.85716524]
[1761840599722,0.451,108110.0,108100.0,0.61632658]
[1761840601230,0.451,108110.0,108100.0,0.70884168]
[1761840601526,0.12876,108110.0,108100.0,0.89992376]
[1761840601726,0.4512,108110.0,108100.0,0.89992376]
[1761840602128,0.40809,108110.0,108100.0,0.89992376]
[1761840602328,0.40809,108110.0,108100.0,0.75362376]
[1761840603224,0.08565,108110.0,108100.0,1.07602376]
[1761840603823,0.10776,108110.0,108100.0,0.98350866]
[1761840604027,0.10776,108110.0,108100.0,1.07602376]
[1761840604225,0.10776,108110.0,108100.0,1.07502376]
[1761840604630,0.08565,108110.0,108100.0,1.07502376]
[1761840605227,0.10776,108110.0,108100.0,1.07502376]
[1761840605529,0.12876,108110.0,108100.0,1.07502376]
[1761840606031,0.08565,108110.0,108100.0,1.07602376]
[1761840607227,0.08565,108110.0,108100.0,1.22232376]
[1761840607425,0.08565,108110.0,108100.0,1.22132376]
[1761840607932,0.08565,108110.0,108100.0,1.22232376]
[1761840608330,0.08565,108110.0,108100.0,1.22508376]
[1761840608529,0.08565,108110.0,108100.0,1.22232376]
[1761840608835,0.08565,108110.0,108100.0,1.22508376]
[1761840609033,0.08565,108110.0,108100.0,1.29139009]
[1761840609825,0.08565,108110.0,108100.0,1.28863009]
[1761840612226,0.08565,108110.0,108100.0,0.87371499]
[1761840612428,0.12876,108110.0,108100.0,0.56657]
[1761840612627,0.12876,108110.0,108100.0,0.88869]
[1761840613031,0.12876,108110.0,108100.0,0.42027]
[1761840614133,0.12876,108110.0,108100.0,1.92027]
[1761840614433,0.12876,108110.0,108100.0,1.97008887]
[1761840615635,0.12876,108110.0,108100.0,1.92027]
[1761840615936,0.12876,108110.0,108100.0,2.16110866]
[1761840616445,0.10776,108110.0,108100.0,2.25362386]
[1761840616828,0.13023,108110.0,108100.0,2.21090669]
[1761840617028,0.14141,108110.0,108100.0,1.60926803]
[1761840617628,0.13023,108110.0,108100.0,1.60926803]
[1761840619338,0.13023,108110.0,108100.0,1.59552803]
[1761840619535,0.13023,108110.0,108100.0,1.60867803]
[1761840619730,0.13023,108110.0,108100.0,1.57369803]
[1761840620041,0.04363,108090.0,108080.0,0.41957]
[1761840620346,0.36575,108090.0,108080.0,1.91957]
[1761840620543,0.96575,108090.0,108080.0,1.55877]
[1761840620843,0.98575,108090.0,108080.0,0.0458]
[1761840621035,0.62658866,108090.0,108080.0,0.02289]
[1761840621238,0.04567,108080.0,108070.0,0.12447633]
[1761840621434,0.04567,108080.0,108070.0,1.62447633]
[1761840621644,0.04567,108080.0,108070.0,1.55817]
[1761840622546,0.04667,108080.0,108070.0,1.56017]
[1761840625346,0.02432,108080.0,108070.0,1.56017]
[1761840625550,0.001,108080.0,108070.0,2.16180866]
[1761840626052,0.001,108080.0,108070.0,2.55031499]
[1761840626649,0.0523,108090.0,108080.0,0.28575866]
[1761840626841,0.0523,108090.0,108080.0,0.64655866]
[1761840627648,0.0523,108090.0,108080.0,0.96875866]
[1761840628350,0.0783,108090.0,108080.0,0.97075866]
[1761840628651,0.16397,108090.0,108080.0,0.97075866]
[1761840629345,0.18729,108090.0,108080.0,0.97075866]
[1761840629541,0.20964,108090.0,108080.0,0.97075866]
[1761840630350,0.16397,108090.0,108080.0,0.97075866]
[1761840630552,0.16397,108090.0,108080.0,0.64855866]
[1761840630851,0.16397,108090.0,108080.0,0.79485866]
[1761840631549,0.16397,108090.0,108080.0,0.55402]
[1761840631943,0.15508101,108090.0,108080.0,0.55402]
[1761840632151,0.20075101,108090.0,108080.0,0.55402]
[1761840632554,0.20075101,108090.0,108080.0,0.19322]
[1761840632846,0.52295101,108090.0,108080.0,0.04692]
[1761840633155,1.14295101,108090.0,108080.0,0.04692]
[1761840633452,0.54295101,108090.0,108080.0,0.04692]
[1761840633853,0.54295101,108090.0,108080.0,0.06044]
[1761840634744,0.15508101,108090.0,108080.0,0.82502136]
[1761840635152,0.15508101,108090.0,108080.0,0.91755326]
[1761840635753,0.15508101,108090.0,108080.0,0.42124]
[1761840635946,0.20075101,108090.0,108080.0,0.42124]
[1761840636654,0.15508101,108090.0,108080.0,0.42124]
[1761840637442,0.15508101,108090.0,108080.0,0.91755386]
[1761840637648,0.15508101,108090.0,108080.0,0.82502136]
[1761840638352,0.15508101,108090.0,108080.0,0.91755396]
[1761840638554,0.15508101,108090.0,108080.0,0.5137726]
[1761840639054,0.15508101,108090.0,108080.0,0.42124]
[1761840639656,0.15508101,108090.0,108080.0,0.56754]
[1761840640451,0.20075101,108090.0,108080.0,0.56754]
[1761840640754,0.20075101,108090.0,108080.0,0.20674]
[1761840641349,0.15508101,108090.0,108080.0,0.20674]
[1761840641759,0.15508101,108090.0,108080.0,0.61052136]
[1761840641956,0.15508101,108090.0,108080.0,0.20674]
[1761840643062,1.25927237,108090.0,108080.0,0.002]
[1761840643258,1.25651237,108090.0,108080.0,0.04692]
[1761840643444,1.25651237,108090.0,108080.0,0.02422]
[1761840643850,1.25651237,108090.0,108080.0,0.05178593]
[1761840643851,1.25927237,108090.0,108080.0,0.05178593]
[1761840645353,1.85927237,108090.0,108080.0,0.05178593]
[1761840645560,1.16375101,108090.0,108080.0,0.11022593]
[1761840645752,1.16375101,108090.0,108080.0,0.09670593]
[1761840645955,1.16375101,108090.0,108080.0,0.05178593]
[1761840647559,1.56753237,108090.0,108080.0,0.05178593]
[1761840647754,1.18534879,108090.0,108080.0,0.002]
[1761840647954,1.58913015,108090.0,108080.0,0.06044]
[1761840648158,1.58913015,108090.0,108080.0,0.02422]
[1761840648564,2.19189015,108090.0,108080.0,0.02422]
[1761840648862,1.86693015,108090.0,108080.0,0.002]
[1761840649864,1.86969015,108090.0,108080.0,0.002]
[1761840650264,0.04567,108070.0,108060.0,1.70923593]
[1761840650857,0.38412,108080.0,108070.0,0.04492]
[1761840651167,0.42807291,108080.0,108070.0,0.04492]
[1761840651963,0.44807291,108080.0,108070.0,0.04492]
[1761840652172,0.45607291,108080.0,108070.0,0.04592]
[1761840652355,0.43447,108080.0,108070.0,0.04592]
[1761840652864,0.45806676,108080.0,108070.0,0.04592]
[1761840653063,0.47606676,108080.0,108070.0,0.04692]
[1761840653660,0.45447,108080.0,108070.0,0.04692]
[1761840654064,0.52014,108080.0,108070.0,0.04692]
[1761840654259,0.54014,108080.0,108070.0,0.04692]
[1761840654667,0.95510136,108080.0,108070.0,0.002]
[1761840654866,0.55132,108080.0,108070.0,0.002]
[1761840655969,0.55132,108080.0,108070.0,0.02324]
[1761840656170,0.56173003,108080.0,108070.0,0.05904]
[1761840656670,0.57291003,108080.0,108070.0,0.05904]
[1761840657672,0.57291003,108080.0,108070.0,0.04592]
[1761840658266,0.57291003,108080.0,108070.0,0.02324]
[1761840658659,0.95669139,108080.0,108070.0,0.002]
[1761840658865,1.28945139,108080.0,108070.0,0.002]
[1761840659068,1.28669139,108080.0,108070.0,0.002]
[1761840660358,1.28945139,108080.0,108070.0,0.002]
[1761840661172,0.88291003,108080.0,108070.0,0.02324]
[1761840661478,0.88567003,108080.0,108070.0,0.002]
[1761840661976,0.88291003,108080.0,108070.0,0.002]
[1761840662178,1.28669139,108080.0,108070.0,0.002]
[1761840662372,2.20889139,108080.0,108070.0,0.002]
[1761840662879,2.21165139,108080.0,108070.0,0.002]
[1761840663372,1.60889139,108080.0,108070.0,0.002]
[1761840663773,2.20889139,108080.0,108070.0,0.002]
[1761840663966,1.61165139,108080.0,108070.0,0.002]
[1761840664166,0.04264,108060.0,108050.0,1.5]
[1761840664370,1.47160136,108060.0,108050.0,1.5]
[1761840664876,1.83240136,108060.0,108050.0,1.5]
[1761840665076,0.04264,108050.0,108040.0,0.05744]
[1761840665374,0.85840136,108050.0,108040.0,0.04392]
[1761840665672,0.85840136,108050.0,108030.0,0.10681987]
[1761840665673,0.04264,108040.0,108030.0,0.10681987]
[1761840665862,0.36488,108040.0,108030.0,0.10681987]
[1761840666966,0.73268,108040.0,108030.0,0.10681987]
[1761840667168,0.73268,108040.0,108030.0,0.05704]
[1761840667366,0.37188,108040.0,108030.0,0.05704]
[1761840667663,0.007,108040.0,108030.0,0.96397723]
[1761840667873,0.32224,108050.0,108040.0,0.1056843]
[1761840668071,0.32224,108050.0,108040.0,0.5104043]
[1761840668367,0.05164,108060.0,108050.0,0.05704]
[1761840668569,0.37388,108060.0,108050.0,0.05704]
[1761840669276,0.73468,108060.0,108050.0,0.05704]
[1761840669475,0.74586,108060.0,108050.0,0.05704]
[1761840669773,0.32224,108060.0,108050.0,0.1495989]
[1761840669978,0.33324,108060.0,108050.0,0.5113989]
[1761840670177,0.33324,108060.0,108050.0,0.91518026]
[1761840670376,0.011,108060.0,108050.0,0.91518026]
[1761840670964,0.011,108060.0,108050.0,0.5113989]
[1761840671472,0.011,108060.0,108050.0,0.52061678]
[1761840672176,0.017,108060.0,108050.0,0.52161678]
[1761840672677,0.017,108060.0,108050.0,0.42905788]
[1761840672678,0.05964,108060.0,108050.0,0.42905788]
[1761840673072,0.05964,108060.0,108050.0,0.5123989]
[1761840673272,0.017,108060.0,108050.0,0.56217877]
[1761840673975,0.017,108060.0,108050.0,0.975019]
[1761840674175,0.08567,108080.0,108070.0,0.1495817]
[1761840674382,0.08567,108080.0,108070.0,0.8711817]
[1761840674579,0.08567,108080.0,108070.0,0.90431965]
[1761840674879,0.429465,108110.0,108100.0,0.04604]
[1761840675179,0.751705,108110.0,108100.0,0.04604]
[1761840675481,0.771705,108110.0,108100.0,0.04604]
[1761840676172,0.80218687,108110.0,108100.0,0.04804]
[1761840676886,0.03324666,108130.0,108120.0,0.05728]
[1761840677177,0.02137,108140.0,108130.0,0.04604]
[1761840677371,0.09021666,108140.0,108130.0,0.40684]
[1761840678182,0.07697666,108140.0,108130.0,0.40684]
[1761840678576,0.09021666,108140.0,108130.0,0.40684]
[1761840678774,0.09721666,108140.0,108130.0,0.40784]
[1761840678974,0.10821666,108140.0,108130.0,0.40784]
[1761840679179,0.07497,108140.0,108130.0,0.40784]
[1761840680382,0.06173,108140.0,108130.0,0.44097795]
[1761840680784,0.07497,108140.0,108130.0,0.44097795]
[1761840681288,0.7045,108150.0,108140.0,0.0574]
[1761840681488,0.74308,108150.0,108140.0,0.0574]
[1761840682475,0.74908,108150.0,108140.0,0.0574]
[1761840682775,0.05645,108150.0,108140.0,0.82198136]
[1761840682975,0.05645,108150.0,108140.0,0.91446316]
[1761840683176,0.05645,108150.0,108140.0,0.91722316]
[1761840683372,0.05645,108150.0,108140.0,0.91446316]
[1761840683882,0.05645,108150.0,108140.0,1.38904316]
[1761840684075,0.01545,108150.0,108140.0,1.24274316]
[1761840684277,0.08561,108160.0,108150.0,0.1370133]
[1761840684480,0.41936,108200.0,108190.0,0.00052]
[1761840684684,0.74516,108200.0,108190.0,0.00052]
[1761840684985,0.38436,108200.0,108190.0,0.36132]
[1761840685191,0.33904,108200.0,108190.0,0.76510136]
[1761840685388,0.04532,108210.0,108200.0,0.00052]
[1761840686681,0.05657666,108240.0,108230.0,0.04454]
[1761840686881,0.05827,108240.0,108230.0,0.04454]
[1761840687077,0.05827,108240.0,108230.0,1.54454]
[1761840687684,0.03628,108240.0,108230.0,1.90534]
[1761840688383,0.73406,108250.0,108240.0,0.04454]
[1761840688682,0.05827,108240.0,108230.0,1.8608]
[1761840688884,0.05827,108240.0,108230.0,1.5]
[1761840689788,0.41907,108240.0,108230.0,1.5]
[1761840689997,0.40622,108250.0,108240.0,0.02308]
[1761840690193,0.05827,108240.0,108230.0,1.5]
[1761840692294,0.05827,108220.0,108210.0,0.40534]
[1761840692501,0.04532,108210.0,108200.0,0.04454]
[1761840692699,0.04532,108210.0,108200.0,1.54454]
[1761840693088,0.40612,108210.0,108200.0,1.54454]
[1761840693288,0.68612,108210.0,108200.0,1.54454]
[1761840693487,0.92653395,108210.0,108200.0,1.52308]
[1761840693691,0.68612,108210.0,108200.0,1.52308]
[1761840693892,0.68612,108210.0,108200.0,1.5]
[1761840693893,0.97653395,108210.0,108200.0,1.5]
[1761840694098,0.02333,108180.0,108170.0,0.38388]
[1761840694284,0.32748,108180.0,108170.0,0.64575395]
[1761840694489,0.32748,108180.0,108170.0,2.14575395]
[1761840695486,0.32748,108180.0,108170.0,2.14775395]
[1761840695689,0.32748,108180.0,108170.0,0.002]
[1761840695690,0.62616395,108180.0,108170.0,0.002]
[1761840695889,0.62616395,108180.0,108130.0,0.40534]
[1761840695890,0.05827,108140.0,108130.0,0.40534]
[1761840696088,0.3644,108140.0,108130.0,0.40534]
[1761840696289,0.3644,108140.0,108130.0,1.90534]
[1761840696496,0.32812,108140.0,108130.0,1.90534]
[1761840696998,7.849e-05,108140.0,108130.0,2.14851395]
[1761840697206,0.32815849,108140.0,108130.0,2.14851395]
[1761840697593,0.37375,108160.0,108150.0,0.04454]
[1761840697793,0.3608,108170.0,108130.0,2.19646435]
[1761840697794,0.40612,108170.0,108160.0,0.04454]
[1761840697988,0.97477395,108170.0,108140.0,0.60764395]
[1761840698190,0.41907,108160.0,108150.0,0.04454]
[1761840698798,0.38413,108170.0,108160.0,0.04454]
[1761840698994,0.3608,108170.0,108160.0,0.28495395]
[1761840699200,0.3608,108170.0,108160.0,0.04454]
[1761840699392,0.40612,108170.0,108160.0,0.04454]
[1761840700400,0.3608,108170.0,108150.0,0.60121395]
[1761840700599,0.001,108160.0,108150.0,0.73822725]
[1761840701602,1.30211,108180.0,108170.0,0.04454]
[1761840701998,0.6,108180.0,108170.0,0.64575395]
[1761840702196,0.6,108180.0,108170.0,0.74097015]
[1761840702398,0.5927222,108180.0,108170.0,0.74097015]
[1761840702798,0.5781666,108180.0,108170.0,0.74097015]
[1761840703600,0.5358888,108180.0,108170.0,1.34097015]
[1761840704095,0.293611,108180.0,108170.0,1.06961015]
[1761840704297,0.293611,108180.0,108170.0,1.06685015]
[1761840704495,0.293611,108180.0,108170.0,1.06985015]
[1761840704695,0.1513332,108180.0,108170.0,0.40834]
[1761840704906,0.0100554,108180.0,108170.0,0.79103175]
[1761840705094,0.0100554,108180.0,108170.0,1.11959175]
[1761840705409,0.0230054,108180.0,108170.0,0.5506178]
[1761840705592,0.0453354,108180.0,108170.0,0.8821378]
[1761840705798,0.0673254,108180.0,108170.0,0.8821378]
[1761840706000,0.0220054,108180.0,108170.0,1.12255175]
[1761840706197,0.0090554,108180.0,108170.0,0.79679175]
[1761840706395,0.0090554,108180.0,108170.0,0.88924795]